[Event "Titled Tuesday Blitz May 30 Late 2023"]
[White "Qiao, Cindy"]
[Black "Ladan, Nicholas"]
[WhiteFideId "2620243"]
[BlackFideId "30918855"]
[WhiteElo "1777"]
[BlackElo "2167"]
[Result "1/2-1/2"]
[Round "11"]
[TimeControl "180+2"]
[Date "2023.05.31"]
[WhiteClock "0:00:03"]
[BlackClock "0:00:03"]

1. e4 {[%clk 0:03:00]}  e5 {[%clk 0:03:00]} 2. Nf3 {[%clk 0:03:00]}  Nc6 {[%clk 0:03:00]} 3. Bb5 {[%clk 0:03:01]}  a6 {[%clk 0:02:59]} 4. Ba4 {[%clk 0:03:01]}  Bc5 {[%clk 0:02:59]} 5. O-O {[%clk 0:03:00]}  Nge7 {[%clk 0:03:00]} 6. c3 {[%clk 0:03:00]}  Ba7 {[%clk 0:03:00]} 7. d4 {[%clk 0:02:58]}  Ng6 {[%clk 0:03:01]} 8. Bg5 {[%clk 0:02:51]}  f6 {[%clk 0:03:00]} 9. Be3 {[%clk 0:02:50]}  O-O {[%clk 0:03:00]} 10. h4 {[%clk 0:02:47]}  d6 {[%clk 0:02:57]} 11. Bb3+ {[%clk 0:02:42]}  Kh8 {[%clk 0:02:57]} 12. h5 {[%clk 0:02:42]}  Nge7 {[%clk 0:02:57]} 13. h6 {[%clk 0:02:40]}  g6 {[%clk 0:02:56]} 14. Nbd2 {[%clk 0:02:26]}  Bg4 {[%clk 0:02:55]} 15. Qc2 {[%clk 0:02:24]}  exd4 {[%clk 0:02:49]} 16. cxd4 {[%clk 0:02:23]}  d5 {[%clk 0:02:49]} 17. e5 {[%clk 0:01:54]}  fxe5 {[%clk 0:02:45]} 18. Nxe5 {[%clk 0:01:51]}  Nxe5 {[%clk 0:02:42]} 19. dxe5 {[%clk 0:01:52]}  Bxe3 {[%clk 0:02:42]} 20. fxe3 {[%clk 0:01:53]}  Qd7 {[%clk 0:02:38]} 21. Rf6 {[%clk 0:01:47]}  Rxf6 {[%clk 0:02:08]} 22. exf6 {[%clk 0:01:48]}  Nc6 {[%clk 0:02:08]} 23. Qc5 {[%clk 0:01:40]}  d4 {[%clk 0:02:02]} 24. e4 {[%clk 0:01:36]}  Qd6 {[%clk 0:01:42]} 25. Qxd6 {[%clk 0:01:27]}  cxd6 {[%clk 0:01:43]} 26. Nc4 {[%clk 0:01:20]}  Rd8 {[%clk 0:01:34]} 27. Nb6 {[%clk 0:01:17]}  d3 {[%clk 0:01:28]} 28. Kh2 {[%clk 0:01:03]}  Be2 {[%clk 0:01:20]} 29. Nd5 {[%clk 0:00:59]}  Ne5 {[%clk 0:01:16]} 30. Kg3 {[%clk 0:00:54]}  Ng4 {[%clk 0:01:10]} 31. Rh1 {[%clk 0:00:52]}  Rf8 {[%clk 0:01:07]} 32. f7 {[%clk 0:00:41]}  Rxf7 {[%clk 0:01:00]} 33. Ne3 {[%clk 0:00:31]}  Nxe3 {[%clk 0:01:00]} 34. Bxf7 {[%clk 0:00:29]}  d2 {[%clk 0:01:00]} 35. Bb3 {[%clk 0:00:26]}  d1=Q {[%clk 0:00:31]} 36. Bxd1 {[%clk 0:00:25]}  Bxd1 {[%clk 0:00:32]} 37. Kf2 {[%clk 0:00:20]}  Ng4+ {[%clk 0:00:31]} 38. Kg3 {[%clk 0:00:18]}  Ne3 {[%clk 0:00:24]} 39. Re1 {[%clk 0:00:17]}  Kg8 {[%clk 0:00:18]} 40. Rxe3 {[%clk 0:00:17]}  Ba4 {[%clk 0:00:17]} 41. Rf3 {[%clk 0:00:17]}  Bc6 {[%clk 0:00:16]} 42. Kf4 {[%clk 0:00:18]}  Kf7 {[%clk 0:00:16]} 43. Rc3 {[%clk 0:00:18]}  Ke6 {[%clk 0:00:16]} 44. b4 {[%clk 0:00:18]}  Kf6 {[%clk 0:00:14]} 45. a3 {[%clk 0:00:17]}  g5+ {[%clk 0:00:15]} 46. Ke3 {[%clk 0:00:16]}  Kg6 {[%clk 0:00:15]} 47. Rd3 {[%clk 0:00:16]}  Kxh6 {[%clk 0:00:13]} 48. Rxd6+ {[%clk 0:00:17]}  Kh5 {[%clk 0:00:14]} 49. e5 {[%clk 0:00:12]}  h6 {[%clk 0:00:11]} 50. e6 {[%clk 0:00:12]}  Kg6 {[%clk 0:00:11]} 51. e7+ {[%clk 0:00:09]}  Kf7 {[%clk 0:00:11]} 52. Rxh6 {[%clk 0:00:09]}  Kxe7 {[%clk 0:00:12]} 53. Rg6 {[%clk 0:00:07]}  Bxg2 {[%clk 0:00:11]} 54. Rxg5 {[%clk 0:00:06]}  Bc6 {[%clk 0:00:11]} 55. Kd4 {[%clk 0:00:07]}  Kd7 {[%clk 0:00:12]} 56. Kc5 {[%clk 0:00:07]}  Kc7 {[%clk 0:00:12]} 57. Rg7+ {[%clk 0:00:07]}  Bd7 {[%clk 0:00:12]} 58. a4 {[%clk 0:00:07]}  b6+ {[%clk 0:00:07]} 59. Kd4 {[%clk 0:00:06]}  Kc8 {[%clk 0:00:08]} 60. a5 {[%clk 0:00:04]}  bxa5 {[%clk 0:00:07]} 61. bxa5 {[%clk 0:00:04]}  Bb5 {[%clk 0:00:04]} 62. Kc5 {[%clk 0:00:05]}  Kb8 {[%clk 0:00:04]} 63. Kb6 {[%clk 0:00:05]}  Kc8 {[%clk 0:00:05]} 64. Rg8+ {[%clk 0:00:05]}  Kd7 {[%clk 0:00:05]} 65. Kb7 {[%clk 0:00:02]}  Bc6+ {[%clk 0:00:04]} 66. Kb6 {[%clk 0:00:02]}  Bb5 {[%clk 0:00:05]} 67. Rg1 {[%clk 0:00:02]}  Kd6 {[%clk 0:00:06]} 68. Rc1 {[%clk 0:00:03]}  Kd7 {[%clk 0:00:06]} 69. Kb7 {[%clk 0:00:02]}  Kd6 {[%clk 0:00:05]} 70. Rc3 {[%clk 0:00:03]}  Kd7 {[%clk 0:00:03]} 71. Rb3 {[%clk 0:00:04]}  Bf1 {[%clk 0:00:03]} 72. Kb6 {[%clk 0:00:04]}  Kd6 {[%clk 0:00:03]} 73. Rc3 {[%clk 0:00:05]}  Kd7 {[%clk 0:00:03]} 74. Rc5 {[%clk 0:00:05]}  Be2 {[%clk 0:00:02]} 75. Re5 {[%clk 0:00:04]}  Bf1 {[%clk 0:00:02]} 76. Rf5 {[%clk 0:00:05]}  Be2 {[%clk 0:00:03]} 77. Rf2 {[%clk 0:00:05]}  Bb5 {[%clk 0:00:02]} 78. Rd2+ {[%clk 0:00:06]}  Kc8 {[%clk 0:00:02]} 79. Rd5 {[%clk 0:00:06]}  Bf1 {[%clk 0:00:02]} 80. Rd6 {[%clk 0:00:05]}  Be2 {[%clk 0:00:02]} 81. Re6 {[%clk 0:00:05]}  Bf1 {[%clk 0:00:03]} 82. Rf6 {[%clk 0:00:05]}  Be2 {[%clk 0:00:03]} 83. Kc6 {[%clk 0:00:05]}  Bb5+ {[%clk 0:00:03]} 84. Kd6 {[%clk 0:00:06]}  Be2 {[%clk 0:00:03]} 85. Rf2 {[%clk 0:00:05]}  Bb5 {[%clk 0:00:03]} 86. Kc5 {[%clk 0:00:06]}  Bd3 {[%clk 0:00:03]} 87. Kb6 {[%clk 0:00:06]}  Bb5 {[%clk 0:00:01]} 88. Rc2+ {[%clk 0:00:07]}  Kd7 {[%clk 0:00:02]} 89. Kb7 {[%clk 0:00:07]}  Kd6 {[%clk 0:00:02]} 90. Kb6 {[%clk 0:00:06]}  Kd7 {[%clk 0:00:02]} 91. Rc5 {[%clk 0:00:07]}  Bf1 {[%clk 0:00:02]} 92. Rc7+ {[%clk 0:00:07]}  Kd6 {[%clk 0:00:02]} 93. Ra7 {[%clk 0:00:07]}  Be2 {[%clk 0:00:02]} 94. Rf7 {[%clk 0:00:04]}  Bb5 {[%clk 0:00:01]} 95. Kb7 {[%clk 0:00:04]}  Bc6+ {[%clk 0:00:01]} 96. Kb6 {[%clk 0:00:04]}  Bb5 {[%clk 0:00:02]} 97. Rc7 {[%clk 0:00:04]}  Bf1 {[%clk 0:00:02]} 98. Rc8 {[%clk 0:00:03]}  Bb5 {[%clk 0:00:02]} 99. Rd8+ {[%clk 0:00:03]}  Ke7 {[%clk 0:00:02]} 100. Rd2 {[%clk 0:00:04]}  Bf1 {[%clk 0:00:02]} 101. Kb7 {[%clk 0:00:05]}  Bb5 {[%clk 0:00:01]} 102. Rb2 {[%clk 0:00:05]}  Bf1 {[%clk 0:00:01]} 103. Rb6 {[%clk 0:00:03]}  Kd7 {[%clk 0:00:02]} 104. Rc6 {[%clk 0:00:02]}  Bg2 {[%clk 0:00:01]} 105. Kxa6 {[%clk 0:00:03]}  Bxc6 {[%clk 0:00:02]} 106. Kb6 {[%clk 0:00:03]}  Bh1 {[%clk 0:00:02]} 107. a6 {[%clk 0:00:04]}  Bg2 {[%clk 0:00:03]} 108. a7 {[%clk 0:00:04]}  Kc8 {[%clk 0:00:04]} 109. a8=Q+ {[%clk 0:00:03]}  Bxa8 {[%clk 0:00:03]} 1/2-1/2


[Site "https://www.chess.com"]

[Event "Titled Tuesday Blitz May 30 Late 2023"]
[White "Jimenez Almeida, Luis David"]
[Black "Magallanes, Rey Jomar"]
[WhiteFideId "22242244"]
[BlackFideId "5205948"]
[WhiteElo "2245"]
[BlackElo "2298"]
[Result "1-0"]
[Round "11"]
[TimeControl "180+2"]
[Date "2023.05.31"]
[WhiteClock "0:01:51"]
[BlackClock "0:01:02"]

1. e4 {[%clk 0:03:00]}  c5 {[%clk 0:02:58]} 2. Nc3 {[%clk 0:03:00]}  d6 {[%clk 0:02:58]} 3. g3 {[%clk 0:03:00]}  Nf6 {[%clk 0:02:58]} 4. Bg2 {[%clk 0:03:01]}  g6 {[%clk 0:02:58]} 5. Nge2 {[%clk 0:03:01]}  Bg7 {[%clk 0:02:59]} 6. d4 {[%clk 0:03:01]}  cxd4 {[%clk 0:02:59]} 7. Nxd4 {[%clk 0:03:02]}  O-O {[%clk 0:02:59]} 8. O-O {[%clk 0:03:02]}  Nc6 {[%clk 0:02:58]} 9. h3 {[%clk 0:03:02]}  Bd7 {[%clk 0:02:56]} 10. Be3 {[%clk 0:03:02]}  Qc8 {[%clk 0:02:56]} 11. Kh2 {[%clk 0:03:01]}  a6 {[%clk 0:02:55]} 12. a4 {[%clk 0:02:54]}  h5 {[%clk 0:02:52]} 13. Qd2 {[%clk 0:02:52]}  h4 {[%clk 0:02:52]} 14. g4 {[%clk 0:02:52]}  Bxg4 {[%clk 0:02:48]} 15. hxg4 {[%clk 0:02:53]}  Nxg4+ {[%clk 0:02:48]} 16. Kg1 {[%clk 0:02:52]}  Nxd4 {[%clk 0:02:29]} 17. Bxd4 {[%clk 0:02:50]}  Bh6 {[%clk 0:02:26]} 18. Qe2 {[%clk 0:02:41]}  Ne5 {[%clk 0:02:25]} 19. f4 {[%clk 0:02:38]}  Nc6 {[%clk 0:02:20]} 20. Be3 {[%clk 0:02:32]}  h3 {[%clk 0:02:17]} 21. Bf3 {[%clk 0:02:31]}  e5 {[%clk 0:02:11]} 22. f5 {[%clk 0:02:25]}  Bxe3+ {[%clk 0:02:01]} 23. Qxe3 {[%clk 0:02:26]}  Nd4 {[%clk 0:02:01]} 24. Qh6 {[%clk 0:02:19]}  gxf5 {[%clk 0:01:49]} 25. Kh1 {[%clk 0:02:17]}  f6 {[%clk 0:01:25]} 26. Qg6+ {[%clk 0:02:11]}  Kh8 {[%clk 0:01:24]} 27. Qh6+ {[%clk 0:01:56]}  Kg8 {[%clk 0:01:21]} 28. Bh5 {[%clk 0:01:52]}  Rf7 {[%clk 0:01:02]} 29. Rg1+ {[%clk 0:01:51]} 1-0


[Site "https://www.chess.com"]

[Event "Titled Tuesday Blitz May 30 Late 2023"]
[White "Liu, Kelsey"]
[Black "Seletsky, Grigory"]
[WhiteFideId "30944481"]
[BlackFideId "14112191"]
[WhiteElo "2270"]
[BlackElo "2491"]
[Result "0-1"]
[Round "11"]
[TimeControl "180+2"]
[Date "2023.05.31"]
[WhiteClock "0:00:01"]
[BlackClock "0:01:06"]

1. e4 {[%clk 0:02:56]}  e6 {[%clk 0:02:52]} 2. d4 {[%clk 0:02:55]}  d5 {[%clk 0:02:52]} 3. Nc3 {[%clk 0:02:55]}  Nc6 {[%clk 0:02:51]} 4. Nf3 {[%clk 0:02:52]}  Nf6 {[%clk 0:02:52]} 5. e5 {[%clk 0:02:50]}  Nd7 {[%clk 0:02:52]} 6. Bb5 {[%clk 0:02:50]}  a6 {[%clk 0:02:51]} 7. Bd3 {[%clk 0:02:47]}  Nb4 {[%clk 0:02:49]} 8. Be2 {[%clk 0:02:46]}  c5 {[%clk 0:02:49]} 9. a3 {[%clk 0:02:44]}  Nc6 {[%clk 0:02:50]} 10. Be3 {[%clk 0:02:37]}  cxd4 {[%clk 0:02:49]} 11. Bxd4 {[%clk 0:02:33]}  Nxd4 {[%clk 0:02:50]} 12. Qxd4 {[%clk 0:02:34]}  Bc5 {[%clk 0:02:49]} 13. Qg4 {[%clk 0:02:34]}  g6 {[%clk 0:02:46]} 14. O-O {[%clk 0:02:33]}  h5 {[%clk 0:02:44]} 15. Qf4 {[%clk 0:02:32]}  Qe7 {[%clk 0:02:38]} 16. b4 {[%clk 0:02:31]}  Ba7 {[%clk 0:02:35]} 17. Rfd1 {[%clk 0:02:14]}  Nb6 {[%clk 0:02:33]} 18. Ng5 {[%clk 0:02:00]}  Bd7 {[%clk 0:02:33]} 19. Rd3 {[%clk 0:01:39]}  Rc8 {[%clk 0:02:33]} 20. Rf3 {[%clk 0:01:39]}  Rxc3 {[%clk 0:02:26]} 21. Rxc3 {[%clk 0:01:38]}  Qxg5 {[%clk 0:02:25]} 22. Qxg5 {[%clk 0:01:38]}  Bc6 {[%clk 0:02:23]} 23. Qf6 {[%clk 0:01:28]}  Rg8 {[%clk 0:02:21]} 24. Rg3 {[%clk 0:01:26]}  Nd7 {[%clk 0:02:18]} 25. Qf4 {[%clk 0:01:26]}  Bb8 {[%clk 0:02:11]} 26. Rg5 {[%clk 0:01:26]}  f6 {[%clk 0:02:08]} 27. Rxg6 {[%clk 0:01:24]}  Rxg6 {[%clk 0:02:07]} 28. Bxh5 {[%clk 0:01:24]}  Kf7 {[%clk 0:02:05]} 29. Qg3 {[%clk 0:01:18]}  Nf8 {[%clk 0:02:02]} 30. f4 {[%clk 0:01:05]}  f5 {[%clk 0:01:58]} 31. Bxg6+ {[%clk 0:01:05]}  Nxg6 {[%clk 0:01:58]} 32. Qh3 {[%clk 0:00:58]}  Kg7 {[%clk 0:01:56]} 33. Rf1 {[%clk 0:00:57]}  d4 {[%clk 0:01:55]} 34. Qd3 {[%clk 0:00:54]}  Ba7 {[%clk 0:01:52]} 35. g3 {[%clk 0:00:50]}  Be4 {[%clk 0:01:50]} 36. Qc4 {[%clk 0:00:30]}  d3+ {[%clk 0:01:44]} 37. Rf2 {[%clk 0:00:30]}  dxc2 {[%clk 0:01:44]} 38. Kf1 {[%clk 0:00:22]}  Bxf2 {[%clk 0:01:34]} 39. Kxf2 {[%clk 0:00:21]}  Ne7 {[%clk 0:01:35]} 40. Qc7 {[%clk 0:00:17]}  Kf8 {[%clk 0:01:30]} 41. Qd8+ {[%clk 0:00:14]}  Kf7 {[%clk 0:01:29]} 42. Qc7 {[%clk 0:00:14]}  Ke8 {[%clk 0:01:20]} 43. h4 {[%clk 0:00:13]}  Nc6 {[%clk 0:01:16]} 44. Qc8+ {[%clk 0:00:05]}  Nd8 {[%clk 0:01:11]} 45. Qc3 {[%clk 0:00:04]}  Nc6 {[%clk 0:01:09]} 46. h5 {[%clk 0:00:04]}  Kf7 {[%clk 0:01:08]} 47. Ke1 {[%clk 0:00:03]}  Kg7 {[%clk 0:01:09]} 48. Kd2 {[%clk 0:00:03]}  Kh6 {[%clk 0:01:09]} 49. Qc5 {[%clk 0:00:01]}  Kxh5 {[%clk 0:01:08]} 50. Qf8 {[%clk 0:00:02]}  Kg4 {[%clk 0:01:07]} 51. Qg7+ {[%clk 0:00:03]}  Kf3 {[%clk 0:01:08]} 52. Qh6 {[%clk 0:00:03]}  Nd4 {[%clk 0:01:08]} 53. Qxe6 {[%clk 0:00:01]}  Nxe6 {[%clk 0:01:06]} 0-1


[Site "https://www.chess.com"]

[Event "Titled Tuesday Blitz May 30 Late 2023"]
[White "Padalka, Artem"]
[Black "Balla, Tamas-Kristof"]
[WhiteFideId "14118637"]
[BlackFideId "1208497"]
[WhiteElo "2073"]
[BlackElo "2334"]
[Result "1-0"]
[Round "11"]
[TimeControl "180+2"]
[Date "2023.05.31"]
[WhiteClock "0:02:10"]
[BlackClock "0:00:38"]

1. Nf3 {[%clk 0:03:00]}  c5 {[%clk 0:02:58]} 2. c4 {[%clk 0:03:00]}  Nc6 {[%clk 0:02:58]} 3. g3 {[%clk 0:03:01]}  g6 {[%clk 0:02:58]} 4. Bg2 {[%clk 0:03:02]}  Bg7 {[%clk 0:02:59]} 5. O-O {[%clk 0:03:03]}  e6 {[%clk 0:02:59]} 6. Nc3 {[%clk 0:03:04]}  Nge7 {[%clk 0:02:57]} 7. d4 {[%clk 0:03:02]}  cxd4 {[%clk 0:02:52]} 8. Nb5 {[%clk 0:03:02]}  d5 {[%clk 0:02:52]} 9. cxd5 {[%clk 0:02:57]}  exd5 {[%clk 0:02:47]} 10. Bf4 {[%clk 0:02:51]}  O-O {[%clk 0:02:34]} 11. Nfxd4 {[%clk 0:02:49]}  Nxd4 {[%clk 0:02:32]} 12. Nxd4 {[%clk 0:02:46]}  Nc6 {[%clk 0:02:32]} 13. Nb5 {[%clk 0:02:42]}  Be6 {[%clk 0:02:24]} 14. Nc7 {[%clk 0:02:40]}  Rc8 {[%clk 0:02:21]} 15. Nxd5 {[%clk 0:02:40]}  Bxb2 {[%clk 0:02:03]} 16. Rb1 {[%clk 0:02:36]}  Bg7 {[%clk 0:02:03]} 17. Rxb7 {[%clk 0:02:35]}  Nd4 {[%clk 0:01:57]} 18. Ne7+ {[%clk 0:02:31]}  Kh8 {[%clk 0:01:56]} 19. Nxc8 {[%clk 0:02:29]}  Bxc8 {[%clk 0:01:47]} 20. Rxa7 {[%clk 0:02:27]}  Qb6 {[%clk 0:01:23]} 21. Ra8 {[%clk 0:02:23]}  Qb2 {[%clk 0:00:51]} 22. e3 {[%clk 0:02:15]}  Ne6 {[%clk 0:00:38]} 23. Qc1 {[%clk 0:02:10]} 1-0


[Site "https://www.chess.com"]

[Event "Titled Tuesday Blitz May 30 Late 2023"]
[White "Harriott, Tyrell"]
[Black "Bringas Gomez, Artai"]
[WhiteFideId "2086484"]
[BlackFideId "24534064"]
[WhiteElo "2107"]
[BlackElo "2179"]
[Result "0-1"]
[Round "11"]
[TimeControl "180+2"]
[Date "2023.05.31"]
[WhiteClock "0:00:21"]
[BlackClock "0:00:26"]

1. d4 {[%clk 0:03:00]}  d5 {[%clk 0:02:36]} 2. e3 {[%clk 0:03:01]}  c6 {[%clk 0:02:33]} 3. Bd3 {[%clk 0:03:01]}  Nf6 {[%clk 0:02:33]} 4. f4 {[%clk 0:03:01]}  g6 {[%clk 0:02:31]} 5. Nf3 {[%clk 0:03:01]}  Bf5 {[%clk 0:02:30]} 6. O-O {[%clk 0:03:01]}  Bxd3 {[%clk 0:02:29]} 7. cxd3 {[%clk 0:03:01]}  Na6 {[%clk 0:02:27]} 8. b3 {[%clk 0:03:01]}  Nc7 {[%clk 0:02:27]} 9. Bb2 {[%clk 0:03:01]}  Ne6 {[%clk 0:02:27]} 10. Ne5 {[%clk 0:03:00]}  Qc7 {[%clk 0:02:26]} 11. Nc3 {[%clk 0:03:00]}  Nd7 {[%clk 0:02:26]} 12. Na4 {[%clk 0:02:57]}  f6 {[%clk 0:02:24]} 13. Nf3 {[%clk 0:02:56]}  O-O-O {[%clk 0:02:23]} 14. b4 {[%clk 0:02:54]}  Kb8 {[%clk 0:02:21]} 15. Qb3 {[%clk 0:02:51]}  Ng7 {[%clk 0:02:17]} 16. Rfc1 {[%clk 0:02:48]}  Nf5 {[%clk 0:02:15]} 17. Re1 {[%clk 0:02:46]}  e6 {[%clk 0:02:14]} 18. Rac1 {[%clk 0:02:44]}  a6 {[%clk 0:02:12]} 19. Nc5 {[%clk 0:02:40]}  Re8 {[%clk 0:02:12]} 20. a4 {[%clk 0:02:39]}  Nd6 {[%clk 0:02:11]} 21. Ba3 {[%clk 0:02:34]}  Bg7 {[%clk 0:02:02]} 22. Rc2 {[%clk 0:02:22]}  e5 {[%clk 0:02:02]} 23. dxe5 {[%clk 0:02:15]}  fxe5 {[%clk 0:02:03]} 24. fxe5 {[%clk 0:01:59]}  Nxe5 {[%clk 0:02:01]} 25. Nd4 {[%clk 0:01:58]}  Bh6 {[%clk 0:01:48]} 26. b5 {[%clk 0:01:56]}  Ng4 {[%clk 0:01:40]} 27. bxa6 {[%clk 0:01:47]}  Bxe3+ {[%clk 0:01:36]} 28. Rxe3 {[%clk 0:01:43]}  Rxe3 {[%clk 0:01:37]} 29. Rc1 {[%clk 0:01:38]}  Nb5 {[%clk 0:01:33]} 30. Nd7+ {[%clk 0:01:22]}  Qxd7 {[%clk 0:01:13]} 31. axb5 {[%clk 0:01:18]}  Qc7 {[%clk 0:01:04]} 32. Nxc6+ {[%clk 0:01:18]}  Ka8 {[%clk 0:00:36]} 33. axb7+ {[%clk 0:01:12]}  Kxb7 {[%clk 0:00:37]} 34. Na5+ {[%clk 0:01:12]}  Kb6 {[%clk 0:00:28]} 35. Bc5+ {[%clk 0:00:20]}  Qxc5 {[%clk 0:00:27]} 36. d4 {[%clk 0:00:21]}  Qxc1+ {[%clk 0:00:26]} 0-1


[Site "https://www.chess.com"]

[Event "Titled Tuesday Blitz May 30 Late 2023"]
[White "Womacka, Mathias"]
[Black "Ardila, Oscar Humberto"]
[WhiteFideId "4611390"]
[BlackFideId "4404742"]
[WhiteElo "2377"]
[BlackElo "1918"]
[Result "0-1"]
[Round "11"]
[TimeControl "180+2"]
[Date "2023.05.31"]
[WhiteClock "0:01:33"]
[BlackClock "0:01:50"]

1. e4 {[%clk 0:03:00]}  e5 {[%clk 0:02:59]} 2. Nf3 {[%clk 0:02:57]}  Nf6 {[%clk 0:02:59]} 3. Nxe5 {[%clk 0:02:56]}  d6 {[%clk 0:02:59]} 4. Nf3 {[%clk 0:02:56]}  Nxe4 {[%clk 0:02:59]} 5. d4 {[%clk 0:02:56]}  Be7 {[%clk 0:02:59]} 6. Bd3 {[%clk 0:02:57]}  d5 {[%clk 0:02:59]} 7. O-O {[%clk 0:02:57]}  Nc6 {[%clk 0:03:00]} 8. Re1 {[%clk 0:02:56]}  Bf5 {[%clk 0:02:54]} 9. Nc3 {[%clk 0:02:50]}  Nxc3 {[%clk 0:02:49]} 10. bxc3 {[%clk 0:02:49]}  Bxd3 {[%clk 0:02:49]} 11. cxd3 {[%clk 0:02:47]}  O-O {[%clk 0:02:48]} 12. Rb1 {[%clk 0:02:43]}  b6 {[%clk 0:02:20]} 13. Bf4 {[%clk 0:02:43]}  Bf6 {[%clk 0:02:16]} 14. Ne5 {[%clk 0:02:34]}  Bxe5 {[%clk 0:02:08]} 15. dxe5 {[%clk 0:02:34]}  Re8 {[%clk 0:02:06]} 16. Qg4 {[%clk 0:02:22]}  Qc8 {[%clk 0:02:02]} 17. Qh5 {[%clk 0:01:55]}  Qe6 {[%clk 0:01:59]} 18. Re3 {[%clk 0:01:52]}  Qg6 {[%clk 0:01:59]} 19. Qe2 {[%clk 0:01:44]}  Re6 {[%clk 0:01:52]} 20. d4 {[%clk 0:01:33]}  Qxb1+ {[%clk 0:01:50]} 0-1


[Site "https://www.chess.com"]

[Event "Titled Tuesday Blitz May 30 Late 2023"]
[White "Buchenau, Frank"]
[Black "Vaglio Munoz, Jaime"]
[WhiteFideId "4604350"]
[BlackFideId "6500145"]
[WhiteElo "2157"]
[BlackElo "2199"]
[Result "1-0"]
[Round "11"]
[TimeControl "180+2"]
[Date "2023.05.31"]
[WhiteClock "0:00:15"]
[BlackClock "0:00:06"]

1. e4 {[%clk 0:02:55]}  c5 {[%clk 0:02:59]} 2. Nf3 {[%clk 0:02:54]}  Qa5 {[%clk 0:02:59]} 3. c3 {[%clk 0:02:51]}  Nc6 {[%clk 0:02:58]} 4. Na3 {[%clk 0:02:42]}  a6 {[%clk 0:02:53]} 5. Nc4 {[%clk 0:02:34]}  Qc7 {[%clk 0:02:52]} 6. d4 {[%clk 0:02:32]}  b5 {[%clk 0:02:49]} 7. Ne3 {[%clk 0:02:30]}  d6 {[%clk 0:02:44]} 8. a4 {[%clk 0:02:23]}  b4 {[%clk 0:02:41]} 9. d5 {[%clk 0:02:17]}  Nb8 {[%clk 0:02:21]} 10. cxb4 {[%clk 0:02:12]}  cxb4 {[%clk 0:02:22]} 11. a5 {[%clk 0:02:01]}  Nd7 {[%clk 0:02:21]} 12. Qa4 {[%clk 0:01:55]}  g6 {[%clk 0:02:11]} 13. Bd2 {[%clk 0:01:49]}  Bg7 {[%clk 0:02:10]} 14. Rc1 {[%clk 0:01:49]}  Qa7 {[%clk 0:02:05]} 15. Nc4 {[%clk 0:01:41]}  Kf8 {[%clk 0:01:43]} 16. Bxb4 {[%clk 0:01:26]}  Ngf6 {[%clk 0:01:27]} 17. Qc2 {[%clk 0:01:18]}  Bh6 {[%clk 0:01:24]} 18. Bd2 {[%clk 0:01:15]}  Bxd2+ {[%clk 0:01:20]} 19. Ncxd2 {[%clk 0:01:14]}  Kg7 {[%clk 0:01:20]} 20. Be2 {[%clk 0:01:02]}  Nc5 {[%clk 0:01:14]} 21. b4 {[%clk 0:00:58]}  Ncd7 {[%clk 0:01:10]} 22. O-O {[%clk 0:00:58]}  Bb7 {[%clk 0:01:09]} 23. Qb2 {[%clk 0:00:56]}  Rhc8 {[%clk 0:01:01]} 24. Rxc8 {[%clk 0:00:51]}  Rxc8 {[%clk 0:01:00]} 25. Rc1 {[%clk 0:00:46]}  Qa8 {[%clk 0:00:56]} 26. Rc3 {[%clk 0:00:40]}  h5 {[%clk 0:00:55]} 27. Qc2 {[%clk 0:00:39]}  Rxc3 {[%clk 0:00:30]} 28. Qxc3 {[%clk 0:00:40]}  Qb8 {[%clk 0:00:29]} 29. Nd4 {[%clk 0:00:38]}  e6 {[%clk 0:00:21]} 30. dxe6 {[%clk 0:00:36]}  Ne5 {[%clk 0:00:20]} 31. exf7 {[%clk 0:00:34]}  Kxf7 {[%clk 0:00:20]} 32. Qb3+ {[%clk 0:00:33]}  Kg7 {[%clk 0:00:19]} 33. Ne6+ {[%clk 0:00:31]}  Kh6 {[%clk 0:00:19]} 34. f4 {[%clk 0:00:31]}  Neg4 {[%clk 0:00:18]} 35. Bxg4 {[%clk 0:00:27]}  hxg4 {[%clk 0:00:16]} 36. Qe3 {[%clk 0:00:19]}  d5 {[%clk 0:00:16]} 37. f5+ {[%clk 0:00:19]}  Kh7 {[%clk 0:00:14]} 38. Qg5 {[%clk 0:00:17]}  Qg8 {[%clk 0:00:06]} 39. fxg6+ {[%clk 0:00:15]}  Qxg6 {[%clk 0:00:06]} 40. Nf8+ {[%clk 0:00:15]}  Kg7 {[%clk 0:00:06]} 41. Qxg6+ {[%clk 0:00:15]}  Kxf8 {[%clk 0:00:06]} 42. Qxf6+ {[%clk 0:00:15]}  Ke8 {[%clk 0:00:06]} 43. e5 {[%clk 0:00:16]}  d4 {[%clk 0:00:06]} 44. e6 {[%clk 0:00:16]}  Bc6 {[%clk 0:00:06]} 45. Qf7+ {[%clk 0:00:15]}  Kd8 {[%clk 0:00:06]} 46. e7+ {[%clk 0:00:15]}  Kc8 {[%clk 0:00:06]} 47. e8=Q+ {[%clk 0:00:15]}  Bxe8 {[%clk 0:00:07]} 48. Qxe8+ {[%clk 0:00:15]}  Kc7 {[%clk 0:00:08]} 49. Qe5+ {[%clk 0:00:15]}  Kc6 {[%clk 0:00:08]} 50. Qxd4 {[%clk 0:00:16]}  g3 {[%clk 0:00:08]} 51. hxg3 {[%clk 0:00:16]}  Kb7 {[%clk 0:00:06]} 52. Qc4 {[%clk 0:00:15]} 1-0


[Site "https://www.chess.com"]

[Event "Titled Tuesday Blitz May 30 Late 2023"]
[White "Pein, Jonathan"]
[Black "Kovacevic, Radmila"]
[WhiteFideId "417092"]
[BlackFideId "933171"]
[WhiteElo "2151"]
[BlackElo "2194"]
[Result "1-0"]
[Round "11"]
[TimeControl "180+2"]
[Date "2023.05.31"]
[WhiteClock "0:01:19"]
[BlackClock "0:00:26"]

1. e4 {[%clk 0:02:59]}  e5 {[%clk 0:03:00]} 2. Nf3 {[%clk 0:02:59]}  f5 {[%clk 0:03:00]} 3. d4 {[%clk 0:02:57]}  fxe4 {[%clk 0:03:00]} 4. Nxe5 {[%clk 0:02:58]}  Nf6 {[%clk 0:03:00]} 5. Nc3 {[%clk 0:02:52]}  d6 {[%clk 0:03:00]} 6. Nc4 {[%clk 0:02:51]}  Be7 {[%clk 0:02:58]} 7. d5 {[%clk 0:02:44]}  O-O {[%clk 0:02:58]} 8. Be2 {[%clk 0:02:42]}  Bf5 {[%clk 0:02:57]} 9. Be3 {[%clk 0:02:42]}  Nbd7 {[%clk 0:02:57]} 10. Qd2 {[%clk 0:02:41]}  Ne5 {[%clk 0:02:54]} 11. Nxe5 {[%clk 0:02:41]}  dxe5 {[%clk 0:02:54]} 12. O-O-O {[%clk 0:02:42]}  a6 {[%clk 0:02:52]} 13. h3 {[%clk 0:02:42]}  b5 {[%clk 0:02:52]} 14. g4 {[%clk 0:02:43]}  Bg6 {[%clk 0:02:52]} 15. Kb1 {[%clk 0:02:43]}  Nd7 {[%clk 0:02:44]} 16. h4 {[%clk 0:02:29]}  Bxh4 {[%clk 0:02:42]} 17. Rxh4 {[%clk 0:02:24]}  Qxh4 {[%clk 0:02:43]} 18. Bg5 {[%clk 0:02:25]}  Qxf2 {[%clk 0:02:41]} 19. d6 {[%clk 0:02:22]}  b4 {[%clk 0:02:23]} 20. Nd5 {[%clk 0:02:20]}  Qd4 {[%clk 0:01:18]} 21. Ne7+ {[%clk 0:02:13]}  Kf7 {[%clk 0:01:14]} 22. Qe1 {[%clk 0:01:55]}  Qc5 {[%clk 0:01:01]} 23. dxc7 {[%clk 0:01:38]}  Qxc7 {[%clk 0:00:47]} 24. Qxb4 {[%clk 0:01:38]}  Rab8 {[%clk 0:00:37]} 25. Bc4+ {[%clk 0:01:29]}  Ke8 {[%clk 0:00:34]} 26. Nf5 {[%clk 0:01:19]}  Bxf5 {[%clk 0:00:26]} 27. Qe7# {[%clk 0:01:19]} 1-0


[Site "https://www.chess.com"]